bitfinex/quotes_ETHUSD_20250319
["timestamp","ask_amount","ask_price","bid_price","bid_amount"]
[1742408937743,7.433,2022.3,2022.1,4.95527]
[1742408937943,7.433,2022.3,2022.1,0.01]
[1742408937944,12.37802,2022.3,2022.1,0.01]
[1742408938144,6.182902,2022.2,2022.1,0.01]
[1742408938853,12.37792,2022.3,2022.1,0.01]
[1742408939060,7.433,2022.3,2022.1,0.01]
[1742408939360,0.7653,2022.6,2022.3,4.94471]
[1742408939551,5.70952,2022.6,2022.2,4.94499]
[1742408939921,4.94447,2022.5,2022.1,10.66769]
[1742408940122,4.94447,2022.5,2022.1,5.72246]
[1742408940333,4.9451,2022.2,2022.1,0.01]
[1742408942139,5.7182,2022.2,2022.1,0.01]
[1742408942340,13.1452,2022.2,2022.1,0.01]
[1742408943337,13.6952,2022.2,2022.1,0.01]
[1742408943734,13.6952,2022.2,2021.8,0.0735228]
[1742408943735,4.94584,2021.9,2021.8,0.0735228]
[1742408943930,30.030031,2021.9,2021.8,0.0735228]
[1742408944332,29.480031,2021.9,2021.8,0.0735228]
[1742408944639,28.721531,2021.9,2021.8,0.0735228]
[1742408944844,14.867,2021.9,2021.8,0.0735228]
[1742408945244,19.81284,2021.9,2021.8,0.0735228]
[1742408945683,21.13144,2021.9,2021.8,0.0735228]
[1742408945861,24.46609853,2021.9,2021.8,0.0735228]
[1742408946191,21.13144,2021.9,2021.8,0.0735228]
[1742408946350,24.233685,2021.9,2021.8,0.0735228]
[1742408946786,23.683685,2021.9,2021.8,0.0735228]
[1742408947792,24.233685,2021.9,2021.8,0.0735228]
[1742408948092,23.683685,2021.9,2021.8,0.0735228]
[1742408949491,24.233685,2021.9,2021.8,0.0735228]
[1742408949698,27.9322115,2021.9,2021.8,2.8e-06]
[1742408949984,5.76907,2021.6,2021.5,7.6e-06]
[1742408950167,10.78260975,2021.6,2021.5,7.6e-06]
[1742408950582,11.35983196,2021.6,2021.5,7.6e-06]
[1742408951103,7.44795122,2021.6,2021.5,7.6e-06]
[1742408951394,4.94641,2021.7,2021.5,7.6e-06]
[1742408951765,4.94657,2021.6,2021.5,7.6e-06]
[1742408951967,4.94638,2021.7,2021.5,7.6e-06]
[1742408952169,4.94643,2021.7,2021.5,7.6e-06]
[1742408952475,5.74647,2021.6,2021.5,7.6e-06]
[1742408952650,4.94647,2021.7,2021.5,7.6e-06]
[1742408952852,4.94657,2021.6,2021.5,7.6e-06]
[1742408953082,5.935835,2021.6,2021.5,7.6e-06]
[1742408953758,4.94657,2021.6,2021.5,7.6e-06]
[1742408953956,5.49657,2021.6,2021.5,7.6e-06]
[1742408954197,6.29787,2021.6,2021.5,7.6e-06]
[1742408954404,13.20975074,2021.6,2021.5,7.6e-06]
[1742408955294,4.9478,2021.1,2021.0,0.0901268]
[1742408955493,32.3555764,2021.1,2021.0,6.8e-06]
[1742408955667,36.14391128,2021.1,2021.0,6.8e-06]
[1742408955862,39.14391128,2021.1,2021.0,6.8e-06]
[1742408956178,35.3555764,2021.1,2021.0,6.8e-06]
[1742408956381,39.3605259,2021.1,2021.0,6.8e-06]
[1742408956669,36.3595259,2021.1,2021.0,6.8e-06]
[1742408956901,35.8095259,2021.1,2021.0,6.8e-06]
[1742408957060,32.59237171,2021.1,2021.0,6.8e-06]
[1742408957395,35.8095259,2021.1,2021.0,6.8e-06]
[1742408958770,36.3595259,2021.1,2021.0,6.8e-06]
[1742408959772,35.8075259,2021.1,2021.0,6.8e-06]
[1742408960477,32.59037171,2021.1,2021.0,6.8e-06]
[1742408960691,27.2328,2021.1,2021.0,6.8e-06]
[1742408960867,19.8208,2021.1,2021.0,6.8e-06]
[1742408961068,14.873,2021.1,2021.0,6.8e-06]
[1742408961373,7.411,2021.3,2021.0,6.8e-06]
[1742408961589,7.411,2021.3,2021.0,4.9479068]
[1742408961797,17.30596,2021.3,2021.0,6.8e-06]
[1742408962098,4.94776,2021.2,2021.0,6.8e-06]
[1742408962314,4.9478,2021.1,2021.0,6.8e-06]
[1742408964380,6.3016,2021.1,2021.0,6.8e-06]
[1742408964584,0.8038,2020.5,2019.7,1.75977053]
[1742408964884,4.95,2020.2,2019.8,4.95085]
[1742408965208,4.94978,2020.3,2020.0,4.95039]
[1742408965426,27.23257,2020.4,2019.9,4.95072]
[1742408965631,4.94992,2020.3,2019.9,4.95073]
[1742408965805,4.94987,2020.3,2019.9,4.95073]
[1742408966006,14.876,2020.4,2020.2,4.94999]
[1742408966210,14.876,2020.4,2020.3,4.94975]
[1742408966721,14.876,2020.4,2020.3,5.74205]
[1742408966923,4.94846,2020.9,2020.3,5.74205]
[1742408967079,1.39337742,2020.9,2020.4,4.94938]
[1742408967287,8.79837742,2020.9,2020.4,9.89879]
[1742408967493,7.405,2021.0,2020.8,4.94851]
[1742408967824,14.878,2021.1,2020.8,5.74876]
[1742408968120,14.878,2021.1,2021.0,4.94804]
[1742408968926,14.878,2021.1,2020.8,5.7489]
[1742408969099,4.94883,2020.7,2020.2,0.7534]
[1742408969416,4.94855,2020.8,2020.2,0.7534]
[1742408969618,4.94829,2020.9,2020.2,5.70321]
[1742408969788,4.94829,2020.9,2020.3,4.94954]
[1742408969984,3.743774,2020.9,2020.4,4.94941]
[1742408970231,4.9487,2020.8,2020.2,10.65308]
[1742408970402,4.9487,2020.8,2020.3,4.94965]
[1742408970604,0.55,2020.7,2020.2,0.7534]
[1742408970792,4.94914,2020.6,2020.2,0.7534]
[1742408971110,8.445789,2020.6,2020.2,0.7534]
[1742408971319,8.445789,2020.6,2020.2,5.70324]
[1742408971817,8.445789,2020.6,2020.2,10.65309]
[1742408972020,1.044789,2020.6,2020.3,4.94974]
[1742408972216,7.399,2020.7,2020.3,4.94974]
[1742408972633,7.399,2020.7,2020.4,4.9493]
[1742408972823,12.34787,2020.7,2020.2,5.70331]
[1742408973019,7.399,2020.7,2020.4,4.94939]
[1742408973204,7.399,2020.7,2020.5,4.94926]
[1742408973390,7.399,2020.7,2020.4,4.94948]
[1742408973591,7.399,2020.7,2020.4,4.9494]
[1742408974031,7.399,2020.7,2020.2,5.70322]
[1742408974344,7.399,2020.7,2020.3,4.94961]
[1742408974629,7.399,2020.7,2020.3,9.89925]
[1742408975000,7.399,2020.7,2020.4,4.94946]
[1742408975205,14.077392,2020.7,2020.2,10.65319]
[1742408975405,9.128612,2020.7,2020.2,0.7534]
[1742408975604,4.94912,2020.6,2020.2,0.7534]
[1742408975939,7.399,2020.7,2020.3,4.94963]
[1742408976237,0.7815,2021.3,2020.6,0.7687]
[1742408976529,5.99,2021.6,2021.5,4.94682]
[1742408976694,14.879,2021.8,2021.3,0.7687]
[1742408976894,20.89011642,2021.8,2021.4,4.94695]
[1742408977121,15.94401642,2021.8,2021.5,4.94668]
[1742408977418,14.879,2021.8,2021.4,4.94694]
[1742408977607,14.879,2021.8,2021.3,0.7687]
[1742408977809,19.8252,2021.8,2021.4,4.94697]
[1742408978017,4.94642,2021.7,2021.3,5.71598]
[1742408978218,9.89298,2021.7,2021.3,0.7687]
[1742408978433,4.94666,2021.6,2021.3,0.7687]
[1742408978593,4.94687,2021.5,2021.3,0.7687]
[1742408978899,9.89351,2021.6,2021.2,4.94755]
[1742408979103,14.879,2021.8,2021.1,0.7732]
[1742408979307,14.879,2021.8,2021.4,4.94684]
[1742408979519,14.879,2021.8,2021.5,4.94673]
[1742408979731,14.879,2021.8,2021.6,4.94637]
[1742408979936,14.879,2021.8,2021.5,4.94677]
[1742408980109,16.41224972,2021.8,2021.4,0.8241]
[1742408980306,16.41224972,2021.8,2021.4,5.77109]
[1742408980506,16.41224972,2021.8,2021.5,4.94662]
[1742408980811,14.879,2021.8,2021.7,4.94633]
[1742408980997,14.879,2021.8,2021.6,4.9464]
[1742408981198,14.879,2021.8,2021.7,4.94633]
[1742408981400,4.94469,2022.4,2022.0,4.94548]
[1742408981813,14.875,2022.5,2022.2,4.94492]
[1742408982396,14.875,2022.5,2022.2,9.88986]
[1742408982591,14.875,2022.5,2022.4,4.94462]
[1742408982828,14.875,2022.5,2022.2,6.732176]
[1742408983025,4.94477,2022.4,2021.8,5.74403]
[1742408983217,4.94526,2022.2,2021.8,5.74406]
[1742408983419,4.94519,2022.2,2021.8,5.74416]
[1742408983723,4.94481,2022.4,2021.8,0.7981]
[1742408983927,19.81937,2022.5,2022.1,4.94516]
[1742408984122,19.8194,2022.5,2022.1,4.94516]
[1742408984323,19.81939,2022.5,2022.2,4.94505]
[1742408984624,14.875,2022.5,2022.0,5.69939]
[1742408984842,14.875,2022.5,2022.3,4.94476]
[1742408985127,14.875,2022.5,2022.3,4.94467]
[1742408985295,14.875,2022.5,2022.4,4.94462]
[1742408985497,14.875,2022.5,2022.4,5.69842]
[1742408985899,14.875,2022.5,2022.4,0.7538]
[1742408986533,14.875,2022.5,2022.4,5.69842]
[1742408987549,19.81946,2022.5,2022.1,10.65297]
[1742408987716,14.875,2022.5,2022.1,5.70767]
[1742408988035,14.875,2022.5,2022.4,4.94462]
[1742408988857,4.94306,2023.1,2022.6,4.94392]
[1742408989018,5.99,2023.2,2022.5,0.7902]
[1742408989204,5.99,2023.2,2022.8,4.94342]
[1742408989406,5.99,2023.2,2022.6,4.94389]
[1742408989626,4.94354,2022.9,2022.5,5.73441]
[1742408989946,4.94442,2022.5,2022.2,0.825]
[1742408990311,4.94442,2022.5,2022.1,4.94532]
[1742408990312,4.94414,2022.6,2022.1,4.94533]
[1742408990640,4.94453,2022.5,2022.0,5.77042]
[1742408990841,4.94488,2022.3,2022.0,0.825]
[1742408991036,5.72336,2022.5,2022.0,5.77037]
[1742408991235,7.498109,2022.5,2022.0,5.77059]
[1742408991542,4.94471,2022.4,2022.0,0.825]
[1742408991723,4.94497,2022.3,2022.0,0.825]
[1742408992221,4.94464,2022.4,2022.0,5.7705]
[1742408992423,4.94464,2022.4,2022.0,0.825]
[1742408992748,9.88949,2022.4,2022.0,5.77044]
[1742408993045,4.94414,2022.6,2022.2,4.94502]
[1742408993246,15.631,2022.7,2022.1,4.94533]
[1742408993542,9.88864,2022.6,2022.2,4.94506]
[1742408993730,32.88999,2022.7,2022.0,7.142216]
[1742408993933,27.18292,2022.7,2022.3,4.94462]
[1742408994247,4.9443,2022.6,2022.3,4.94478]
[1742408994544,19.81194,2022.7,2022.3,4.94469]
[1742408994869,4.94421,2022.6,2022.3,0.8147]
[1742408995151,14.868,2022.7,2022.4,4.94454]
[1742408995451,14.868,2022.7,2022.4,4.9445]
[1742408995764,17.667157,2022.7,2022.0,5.70547]
[1742408995918,4.94464,2022.4,2022.0,10.6509]
[1742408996117,17.667157,2022.7,2022.1,4.94512]
[1742408996319,4.94424,2022.6,2022.2,4.94494]
[1742408996640,4.94444,2022.5,2022.2,4.94509]
[1742408996842,4.94431,2022.6,2022.2,4.94492]
[1742408997150,4.94431,2022.6,2022.2,9.88989]
[1742408997355,4.94439,2022.5,2022.2,4.94492]
[1742408997507,4.94424,2022.6,2022.0,0.7599]
[1742408997710,4.94438,2022.5,2022.1,4.94522]
[1742408998163,4.94424,2022.6,2022.1,4.94519]
[1742408998327,4.94424,2022.6,2022.2,4.94501]
[1742408998529,4.94426,2022.6,2022.2,4.94501]
[1742408999154,4.94437,2022.5,2022.0,0.7599]
[1742408999324,22.234,2022.7,2022.0,0.7599]
[1742408999528,4.9446,2022.5,2022.0,5.70537]
[1742408999727,4.94497,2022.3,2022.0,5.70548]
[1742408999968,4.94464,2022.4,2022.0,10.65093]
[1742409000123,4.94486,2022.3,2022.0,0.7599]
[1742409000323,4.94549,2022.1,2021.4,0.7973]
[1742409000630,4.94415,2022.6,2022.2,4.94509]
[1742409000842,14.868,2022.7,2022.1,4.94535]
[1742409001168,0.8269,2023.5,2022.9,0.7592]
[1742409001361,0.8269,2023.5,2022.4,8.28709363]
[1742409001362,4.94348,2022.9,2022.5,5.69865]
[1742409001521,0.7599,2022.9,2022.8,4.94364]
[1742409001721,0.7599,2022.9,2022.3,0.7544]
[1742409001722,7.362,2023.0,2022.7,0.7544]
[1742409001921,7.362,2023.0,2022.7,5.69826]
[1742409002116,4.94272,2023.2,2022.7,5.69817]
[1742409002351,4.94347,2022.9,2022.7,0.7544]
[1742409002537,4.94252,2023.3,2022.7,0.7544]
[1742409002737,4.94243,2023.3,2022.9,4.94331]
[1742409002939,4.94193,2023.5,2023.1,4.94275]
[1742409003153,0.7731,2024.0,2023.2,0.86152195]
[1742409003351,20.57823,2024.3,2023.4,0.7556]
[1742409003559,4.94078,2024.0,2023.5,4.94182]
[1742409003860,4.94029,2024.2,2023.7,4.9413]
[1742409004020,4.94088,2024.0,2023.5,9.88367]
[1742409004224,8.826975,2024.2,2023.7,4.94134]
[1742409004554,3.886755,2024.2,2023.8,5.6965]
[1742409004721,3.886755,2024.2,2023.8,5.69645]
[1742409004937,8.1903,2024.5,2023.9,4.94095]
[1742409004938,0.8323,2024.5,2023.9,4.94095]
[1742409005140,0.8323,2024.5,2023.8,0.7554]
[1742409005141,0.7886,2024.8,2024.0,0.04940238]
[1742409005380,7.357,2024.9,2024.3,0.782]
[1742409005381,4.93912,2024.7,2024.3,0.782]
[1742409005539,12.29575,2024.9,2024.5,4.93948]
[1742409005744,14.863,2025.0,2024.7,4.93894]
[1742409005945,0.01,2025.4,2024.9,4.93836]
[1742409006145,4.93822,2025.1,2024.6,8.72114]
[1742409006375,4.93822,2025.1,2024.7,4.93879]
[1742409006560,4.93776,2025.3,2024.6,3.782]
[1742409006763,0.01,2025.4,2025.2,4.93768]
[1742409006971,0.01,2025.4,2025.2,5.69423]
[1742409007343,0.01,2025.4,2025.3,4.93754]
[1742409007547,0.01,2025.4,2025.3,7.93754]
[1742409007753,4.93754,2025.3,2025.2,0.7565]
[1742409008006,0.988507,2025.3,2025.0,3.0]
[1742409008160,5.926097,2025.3,2024.9,0.8229]
[1742409008361,5.926097,2025.3,2024.9,3.8229]
[1742409008566,0.01,2025.4,2024.9,0.8229]
[1742409008898,0.01,2025.4,2025.1,4.93787]
[1742409009065,0.01,2025.4,2024.9,0.8229]
[1742409009258,0.01,2025.4,2025.0,4.93815]
[1742409009460,0.01,2025.4,2025.2,4.93768]
[1742409009789,0.01,2025.4,2025.1,3.0]
[1742409010141,0.01,2025.4,2025.2,4.93761]
[1742409010547,0.01,2025.4,2025.1,7.93798]
[1742409010873,0.01,2025.4,2025.3,4.93754]
[1742409011074,0.01,2025.4,2025.3,3.8041]
[1742409011281,0.01,2025.4,2025.3,8.69100532]
[1742409011451,0.01,2025.4,2025.3,9.19164]
[1742409012082,1e-05,2025.4,2025.3,8.48754]
[1742409012375,1e-05,2025.4,2025.3,11.41442667]
[1742409013566,15.6418,2026.8,2026.1,3.0]
[1742409013772,4.93449,2026.6,2026.2,4.93531]
[1742409014080,14.853,2026.8,2026.4,4.93466]
[1742409014286,4.93382,2026.9,2026.4,6.189826]
[1742409014482,4.93416,2026.7,2026.4,1.255166]
[1742409014661,4.93473,2026.5,2026.1,3.7617]
[1742409015050,4.93473,2026.5,2026.1,8.69717]
[1742409015371,4.93453,2026.6,2026.3,3.0]
[1742409015573,4.93414,2026.7,2026.3,3.0]
[1742409015772,4.93449,2026.6,2026.3,3.0]
[1742409015978,4.93427,2026.7,2026.3,3.0]
[1742409016283,4.93425,2026.7,2026.3,4.935]
[1742409016498,4.93478,2026.5,2026.1,3.7617]
[1742409016662,4.93478,2026.5,2026.1,8.69721]
[1742409016858,4.93437,2026.6,2026.1,13.6326]
[1742409017202,4.93364,2026.9,2026.1,8.69709]
[1742409017203,4.9348,2026.5,2026.1,8.69709]
[1742409017355,4.93443,2026.6,2026.2,7.93524]
[1742409017550,4.93422,2026.7,2026.3,7.93495]
[1742409017750,4.93438,2026.6,2026.3,3.0]
[1742409017979,4.9351,2026.3,2026.2,3.0]
[1742409018510,4.93462,2026.5,2025.8,0.8196]
[1742409018511,4.93607,2025.9,2025.8,0.8196]
[1742409018671,9.87331,2025.7,2025.5,0.8196]
[1742409019022,4.93641,2025.8,2025.4,4.93719]
[1742409019312,4.93607,2025.9,2024.5,7.332]
[1742409019605,15.416127,2025.8,2025.1,4.93802]
[1742409019901,4.93683,2025.6,2025.2,7.93766]
[1742409020105,4.9372,2025.5,2025.2,3.0]
[1742409020468,4.93754,2025.3,2025.2,3.0]
[1742409020678,4.93754,2025.3,2024.9,4.93842]
[1742409021009,15.416127,2025.8,2025.2,4.93766]
[1742409021010,4.93676,2025.7,2025.2,4.93766]
[1742409021179,4.93676,2025.7,2025.3,4.93743]
[1742409021374,4.93676,2025.7,2025.4,3.0]
[1742409021583,14.845,2025.8,2025.3,0.782]
[1742409021796,14.845,2025.8,2024.9,1.065904]
[1742409021797,4.93722,2025.5,2025.0,3.0]
[1742409021967,4.93736,2025.4,2025.0,8.9162444]
[1742409022295,4.93656,2025.7,2025.0,3.0]
[1742409022495,14.845,2025.8,2024.9,0.7764]
[1742409022496,12.26486,2025.6,2024.9,0.7764]
[1742409022807,4.93796,2025.2,2024.9,3.7764]
[1742409023110,9.87643,2025.1,2024.7,4.93893]
[1742409023428,4.93876,2024.8,2024.2,0.7958]
[1742409023579,12.26418,2025.1,2024.7,4.93897]
[1742409024011,4.93754,2025.3,2024.7,4.93897]
[1742409024012,4.93743,2025.4,2024.9,4.93828]
[1742409024212,4.93743,2025.4,2024.8,4.93874]
[1742409024508,7.326,2025.6,2024.9,0.573454]
[1742409024679,4.93749,2025.4,2024.9,7.93842]
[1742409024884,12.263,2025.6,2025.1,4.93792]
[1742409025081,12.263,2025.6,2025.2,4.93767]
[1742409025265,4.93729,2025.5,2024.7,8.73469]
[1742409025464,4.93729,2025.5,2025.1,4.93793]
[1742409025687,12.26287,2025.6,2025.2,0.795]
[1742409025688,7.326,2025.6,2025.2,0.795]
[1742409025902,14.845,2025.8,2025.2,0.795]
[1742409026095,4.93657,2025.7,2025.4,4.93709]
[1742409026266,14.845,2025.8,2025.5,4.93701]
[1742409026594,14.845,2025.8,2025.2,0.795]
[1742409026767,14.845,2025.8,2025.6,4.93666]
[1742409026967,4.93594,2026.0,2025.6,4.93666]
[1742409027265,4.93462,2026.5,2026.0,4.93571]
[1742409027468,14.844,2026.8,2026.4,4.93467]
[1742409027671,14.844,2026.8,2026.3,3.0]
[1742409027877,14.844,2026.8,2026.5,4.93461]
[1742409028080,3.0,2027.4,2026.3,0.793511]
[1742409028081,4.93304,2027.2,2026.6,0.0493386]
[1742409028409,14.9636976,2027.5,2026.9,4.93355]
[1742409028607,14.9636976,2027.5,2026.6,3.34251363]
[1742409028812,14.9636976,2027.5,2026.7,3.8133]
[1742409029101,0.1196976,2027.5,2027.3,4.93252]
[1742409029303,0.1196976,2027.5,2027.4,7.98173589]
[1742409029508,0.1196976,2027.5,2027.4,8.71852]
[1742409030397,7.6e-06,2027.5,2027.4,9.26852]
[1742409030810,0.01,2028.4,2028.3,4.93023]
[1742409031142,0.01,2028.4,2028.2,4.9304]
[1742409031143,0.01,2028.4,2028.2,3.7759]
[1742409031429,0.01,2028.4,2028.3,4.93023]
[1742409031629,0.01,2028.4,2028.3,7.97952415]
[1742409031931,0.01,2028.4,2028.3,7.93023]
[1742409032329,1e-05,2028.4,2028.3,8.48023]
[1742409033098,1e-05,2028.4,2028.3,9.30483]
[1742409033302,1e-05,2028.4,2028.3,13.12759855]
[1742409033905,1e-05,2028.4,2028.3,20.43859855]
[1742409035533,0.1196976,2029.6,2029.5,4.92732]
[1742409035941,0.1196976,2029.6,2029.4,4.92752]
[1742409036108,0.1196976,2029.6,2029.5,7.92732]
[1742409036312,0.1196976,2029.6,2029.5,9.29747263]
[1742409036731,0.1196976,2029.6,2029.5,7.92732]
[1742409037042,0.1196976,2029.6,2029.5,3.0]
[1742409037200,0.1196976,2029.6,2029.4,3.0]
[1742409037405,4.92743,2029.5,2029.0,4.92836]
[1742409037714,4.92756,2029.4,2028.6,4.9295]
[1742409037913,4.92838,2029.1,2028.6,4.92938]
[1742409038123,4.92804,2029.3,2028.7,4.92909]
[1742409038314,4.92758,2029.4,2028.8,4.92882]
[1742409038509,4.9276,2029.4,2028.8,4.92881]
[1742409038695,4.92816,2029.2,2028.7,4.92924]
[1742409038896,4.92843,2029.1,2028.6,5.90523935]
[1742409039198,4.92816,2029.2,2028.8,4.92891]
[1742409039433,5.0467976,2029.6,2029.1,4.92827]
[1742409039631,0.1196976,2029.6,2029.1,4.92815]
[1742409039933,1.43536336,2029.6,2029.0,3.0]
[1742409040241,4.9283,2029.1,2028.5,12.99094]
[1742409040399,4.92841,2029.1,2028.6,3.0]
[1742409040728,4.92841,2029.1,2028.7,4.92911]
[1742409040930,4.92809,2029.2,2028.7,4.92911]
[1742409041140,7.299,2029.3,2028.5,0.7574]
[1742409041141,6.151179,2029.1,2028.6,4.92945]
[1742409041307,9.85685,2029.1,2028.6,7.9294]
[1742409041515,4.92842,2029.1,2028.6,12.85879]
[1742409041711,9.85682,2029.1,2028.6,7.92939]
[1742409041926,4.92855,2029.0,2028.6,7.92939]
[1742409042101,4.9284,2029.1,2028.6,3.0]
[1742409042102,4.9288,2028.9,2028.6,3.0]
[1742409042301,0.57585,2028.9,2028.0,4.9308]
[1742409042523,4.92927,2028.7,2028.3,4.93021]
[1742409042728,4.92927,2028.7,2027.9,0.8203]
[1742409042729,4.9296,2028.6,2028.1,4.93058]
[1742409042921,7.295,2028.8,2027.9,5.75129]
[1742409043159,4.93048,2028.2,2027.7,12.2265]
[1742409043322,4.93048,2028.2,2027.6,0.7845]
[1742409043323,4.93015,2028.4,2027.9,4.93111]
[1742409043527,5.71155,2028.5,2028.0,4.93087]
[1742409043739,4.93018,2028.4,2027.9,4.93105]
[1742409044124,4.9303,2028.3,2027.8,4.93144]
[1742409044438,4.93048,2028.2,2027.8,4.93144]
[1742409044645,4.93192,2027.7,2027.4,1.00392659]
[1742409044860,4.9315,2027.8,2027.4,4.9323]
[1742409045226,5.76246,2027.9,2027.4,4.93224]
[1742409045425,5.76246,2027.9,2027.5,4.93213]
[1742409045426,5.76242,2027.9,2027.5,4.93213]
[1742409045626,4.93132,2027.9,2027.5,4.93213]
[1742409045829,4.93139,2027.9,2027.4,4.93231]
[1742409046137,4.93126,2027.9,2027.5,4.93217]
[1742409046348,4.93126,2027.9,2027.4,4.93231]
[1742409046533,0.8311,2028.1,2027.8,4.93127]
[1742409046728,4.93072,2028.1,2027.4,0.793231]
[1742409046931,4.93175,2027.7,2027.2,4.93287]
[1742409047138,0.8314,2027.8,2027.4,3.0]
[1742409047343,0.8314,2027.8,2027.5,4.93213]
[1742409047641,4.93162,2027.8,2027.4,3.0]
[1742409047972,4.93218,2027.5,2027.1,4.93315]
[1742409048136,4.93197,2027.6,2027.3,3.0]
[1742409048487,4.93279,2027.3,2026.9,4.93346]
[1742409048631,4.93247,2027.4,2027.0,4.93328]
[1742409048830,4.93247,2027.4,2026.7,8.0601]
[1742409048831,12.22084,2027.7,2027.2,4.93268]
[1742409049061,5.72038,2027.8,2027.3,4.93254]
[1742409049280,0.7887,2027.8,2027.5,4.93217]
[1742409049560,9.8627,2027.9,2027.4,4.93227]
[1742409049781,4.93126,2027.9,2027.5,4.93215]
[1742409049954,4.93126,2027.9,2027.4,4.93227]
[1742409050183,14.823,2028.0,2027.6,4.93178]
[1742409050387,14.823,2028.0,2027.7,4.93158]
[1742409050590,4.93132,2027.9,2027.4,5.74442]
[1742409050789,9.86271,2027.9,2027.4,10.67671]
[1742409050999,4.93123,2027.9,2027.5,9.86404]
[1742409051181,4.93123,2027.9,2027.5,4.93198]
[1742409051701,4.93125,2027.9,2027.5,4.93198]
[1742409052064,19.75398,2028.0,2027.6,4.93191]
[1742409052271,4.93133,2027.9,2027.4,7.9324]
[1742409052472,4.93156,2027.8,2027.1,3.8235]
[1742409052676,4.93154,2027.8,2027.4,4.93219]
[1742409052873,4.93253,2027.4,2026.8,6.07881107]
[1742409053073,0.819,2027.5,2026.3,0.7736]
[1742409053289,0.819,2026.9,2026.3,0.7736]
[1742409053611,13.03814,2027.2,2026.8,4.93377]
[1742409053760,2.616079,2027.2,2026.9,4.9335]
[1742409053961,13.01258,2027.5,2027.0,4.93319]
[1742409054160,4.93268,2027.3,2026.9,4.93353]
[1742409054460,13.0125,2027.5,2027.0,4.93334]
[1742409054662,4.93247,2027.4,2027.0,4.93334]
[1742409055001,13.0125,2027.5,2026.8,0.7821]
[1742409055002,4.9328,2027.3,2026.8,0.7821]
[1742409055203,4.93293,2027.2,2026.8,9.86758]
[1742409055503,4.93314,2027.2,2026.8,3.0]
[1742409055803,4.93326,2027.1,2026.8,3.0]
[1742409055987,4.93389,2026.8,2026.5,3.0]
[1742409056193,4.93389,2026.8,2026.4,4.93461]
[1742409056371,4.9343,2026.7,2026.3,3.0]
[1742409056569,4.93393,2026.8,2026.3,4.93486]
[1742409056969,9.86803,2026.8,2026.3,4.93486]
[1742409057300,4.93393,2026.8,2026.4,3.0]
[1742409057505,4.93414,2026.7,2026.4,3.0]
[1742409058065,9.86897,2026.6,2026.2,4.93534]
[1742409058411,5.74308,2026.8,2025.9,4.93593]
[1742409060913,0.8262,2026.9,2026.4,7.93464]
[1742409061077,4.93401,2026.8,2026.4,12.86939]
[1742409061407,4.93277,2027.3,2026.7,0.7733]
[1742409061564,0.8115,2027.5,2026.7,0.7733]
[1742409061565,4.93258,2027.4,2026.9,7.93341]
[1742409061765,0.8115,2027.5,2027.1,4.93309]
[1742409061978,0.8115,2027.5,2027.2,3.0]
[1742409062211,7.279,2027.8,2027.3,4.93257]
[1742409062212,4.93175,2027.7,2027.3,4.93257]
[1742409062503,4.93194,2027.6,2026.7,3.7733]
[1742409062664,7.279,2027.8,2027.3,4.93251]
[1742409062665,12.21059,2027.8,2027.3,4.93251]
[1742409062866,4.93171,2027.7,2027.4,3.0]
[1742409063609,4.93202,2027.6,2027.3,3.0]
[1742409063906,4.93274,2027.3,2027.0,3.0]
[1742409064067,4.93243,2027.4,2027.0,3.0]
[1742409064268,4.93243,2027.4,2027.0,7.93331]
[1742409064468,4.93252,2027.4,2027.0,7.93323]
[1742409064664,4.93252,2027.4,2027.0,3.0]
[1742409064865,0.493252,2027.4,2027.1,4.93313]
[1742409065066,15.6389,2027.9,2027.3,4.93266]
[1742409065315,5.74111,2027.9,2027.4,12.86471]
[1742409065462,4.93145,2027.8,2027.5,3.0]
[1742409065814,4.92583875,2027.5,2027.2,3.0]
[1742409065995,4.9318,2027.7,2027.2,4.9327]
[1742409066178,4.93195,2027.6,2027.2,4.93288]
[1742409066508,5.74129,2027.9,2027.6,4.93189]
[1742409066713,4.93099,2028.0,2027.6,5.68215]
[1742409066865,4.93131,2027.9,2027.5,4.93198]
[1742409067208,5.72269,2028.0,2027.4,0.04931491]
[1742409067417,5.72269,2028.0,2027.5,4.93198]
[1742409067598,4.93129,2027.9,2027.5,9.86407]
[1742409067805,4.9313,2027.9,2027.5,4.93198]
[1742409068015,5.72269,2028.0,2027.6,4.93184]
[1742409068524,1.856942,2028.0,2027.0,0.7724]
[1742409068682,4.93304,2027.2,2026.8,4.93374]
[1742409068875,4.93288,2027.3,2026.9,4.93346]
[1742409069221,5.69271,2027.4,2027.0,3.0]
[1742409069388,4.93289,2027.3,2026.7,1.1892814]
[1742409069588,5.69263,2027.4,2026.7,1.1892814]
[1742409069791,0.7602,2027.4,2027.2,4.93271]
[1742409070024,17.93195,2027.7,2027.3,3.0]
[1742409070225,0.7974,2027.7,2027.4,4.93242]
[1742409070425,0.7974,2028.0,2027.6,4.93193]
[1742409070589,4.93136,2027.9,2027.5,4.9321]
[1742409070788,4.93136,2027.9,2027.5,4.93196]
[1742409071096,4.9312,2027.9,2027.5,4.93206]
[1742409071303,4.9312,2027.9,2027.5,6.218468]
[1742409071514,0.7974,2028.0,2027.5,4.286448]
[1742409071826,4.93198,2027.6,2027.2,5.725961]